Cogmind - Beta 13 @@@ ROGUE MODE // 2024.07.10 @ 10:35:46 Player: ZergFTW Result: Destroyed by G-47 Trooper with Particle Gun Performance ------------- Evolutions (0) 0 Regions Visited (2) 400 Robots Destroyed (20) 100 Value Destroyed (428) 428 Prototype IDs (0) 0 Alien Tech Used (0) 0 Bonus (0) 0 TOTAL SCORE: 928 Bonus ------- None Cogmind --------- Core Integrity 0/250 Matter 275/300 Energy 248/250 System Corruption 0% Temperature Cool (9) Movement Rolling (95) Ox1 Location -10/Mines Parts ------- > --- POWER (1) -------- Ion Engine > --- PROPULSION (2) --- Wheel Wheel > --- UTILITY (2) ------ Large Storage Unit Light Armor Plating > --- WEAPON (2) ------- Particle Gun Assault Rifle > --- INVENTORY (15) --- Ion Engine Wheel Compact Wheel Heat Sink High-capacity Matter Pod (200) Weight Redist. System Structural Scanner Sensor Array Hacking Suite EM Pulse Gun Medium Laser Datajack Hammer Peak State ------------ > --- POWER ------------ Ion Engine > --- PROPULSION ------- Wheel Compact Wheel > --- UTILITY ---------- Large Storage Unit Visual Processing Unit > --- WEAPON ----------- Particle Gun Particle Gun > --- INVENTORY -------- Ion Engine Ion Engine Wheel Heat Sink High-capacity Matter Pod Sensor Array EM Pulse Gun EM Pulse Gun Assault Rifle Mining Laser [Rating: 11] Favorites ----------- Power Ion Engine Engine Ion Engine Propulsion Wheel Leg Aluminum Leg Wheel Wheel Utility Large Storage Unit Device Sensor Array Storage Large Storage Unit Processor Visual Processing Unit Protection Light Armor Plating Weapon Particle Gun Energy Gun Particle Gun Ballistic Gun Assault Rifle Build | -11 -10 -10 ------- Run | Yrd Mat Min Slots Evolved . | . . . Power . | . . . Propulsion . | . . . Utility . | . . . Weapon . | . . . Parts Attached 30 | 6 21 3 Power 4 | 1 3 . Engine 4 | 1 3 . Core . | . . . Reactor . | . . . Propulsion 12 | 2 9 1 Treads . | . . . Leg 6 | 2 4 . Wheel 6 | . 5 1 Hover . | . . . Flight . | . . . Utility 8 | 1 5 2 Device 2 | . 1 1 Storage 4 | 1 3 . Processor 1 | . 1 . Hackware . | . . . Protection 1 | . . 1 Artifact . | . . . Weapon 6 | 2 4 . Energy Gun 3 | . 3 . Energy Cannon . | . . . Ballistic Gun 3 | 2 1 . Ballistic Cannon . | . . . Launcher . | . . . Special Weapon . | . . . Impact Weapon . | . . . Slashing Weapon . | . . . Piercing Weapon . | . . . Special Melee Weapon . | . . . Unidentified Prototypes . | . . . Parts Lost 5 | . 3 2 Power 1 | . 1 . Propulsion 2 | . 1 1 Utility 1 | . . 1 Weapon 1 | . 1 . Highest Loss Streak 2 | . 1 2 To Critical Strikes . | . . . Average Slot Usage (%) 96 | . 96 100 Engine 14 | . 14 14 Leg 7 | . 8 . Wheel 20 | . 18 28 Device 3 | . 1 13 Storage 16 | . 16 14 Processor 5 | . 6 . Energy Gun 17 | . 18 14 Ballistic Gun 10 | . 9 14 Naked Turns . | . . . Heaviest Build 53 | 12 53 33 Greatest Support 26 | 20 26 20 Greatest Overweight (x) 5 | . 5 1 Average Overweight (x) . | . 1 1 Largest Inventory Capacity 20 | 8 20 15 Average Capacity 14 | 7 14 15 Most Carried 15 | 3 14 15 Average Carried 9 | 2 8 14 Final Capacity 15 | 8 15 15 Final Carried 14 | 3 14 13 Class Distribution -------------------- 63% | Scavenger-Mutant 36% | Mutant Dominant Class ---------------- Scavenger-Mutant | -10/Materials Mutant | -10/Mines Resources | -11 -10 -10 ----------- Run | Yrd Mat Min Matter Collected 787 | 270 507 10 Remotely . | . . . Salvage Created 712 | 75 637 . Parts 37 | 2 35 . Haulers Intercepted 2 | . 2 . Recyclers Shooed 1 | . 1 . Parts Field Recycled . | . . . Retrieved Matter . | . . . Parts Self-Destructed . | . . . Prevented . | . . . Kills | -11 -10 -10 ------- Run | Yrd Mat Min Combat Hostiles Destroyed 9 | . 9 . Guns 9 | . 9 . Classes Destroyed 8 | 2 6 . Worker 3 | . 3 . Builder 1 | . 1 . Tunneler 1 | 1 . . Hauler 2 | . 2 . Recycler 1 | 1 . . Operator 1 | . 1 . Watcher 2 | . 2 . Grunt 9 | . 9 . Best Kill Streak 3 | 2 3 . Combat Bots Only 3 | . 3 . Max Kills in Single Turn 2 | 1 2 . Gunslinging . | . . . Exploded . | . . . Melee . | . . . Uniques/NPCs Destroyed . | . . . Combat | -11 -10 -10 -------- Run | Yrd Mat Min Hostile Shots Fired 107 | . 65 42 Missed 26 | . 14 12 Damage Taken 1101 | . 679 422 Core 258 | . 110 148 Absorbed by Shields . | . . . Regen/Repaired (Parts) 43 | . 43 . Core Remaining (%) 100 | 100 . . Volleys Fired 73 | 5 63 5 Largest 2 | 2 2 2 Hottest 130 | 40 130 85 Shots Fired 145 | 10 125 10 Gun 145 | 10 125 10 Cannon . | . . . Launcher . | . . . Special . | . . . Kinetic 100 | 10 85 5 Thermal 45 | . 40 5 Explosive . | . . . Electromagnetic . | . . . Robot Hit Streak 11 | 3 11 2 Robot Miss Streak 3 | 2 3 3 Penetration Max . | . . . Secondary Targets . | . . . Shots Hit Robots 92 | 6 81 5 Core Hits 34 | 3 31 . Critical Kills . | . . . Critical Parts Destroyed . | . . . Critical Strikes 2 | . 2 . Burn 2 | . 2 . Melee Attacks . | . . . Impact . | . . . Slashing . | . . . Piercing . | . . . Sneak Attacks . | . . . Combat Hostiles . | . . . Follow-up Attacks . | . . . Damage Inflicted 1026 | 56 898 72 Guns 1026 | 56 898 72 Cannons . | . . . Explosions . | . . . Melee . | . . . Ramming . | . . . Kinetic 583 | 56 485 42 Thermal 443 | . 413 30 Explosive . | . . . Electromagnetic . | . . . Impact . | . . . Slashing . | . . . Piercing . | . . . Highest Corruption . | . . . Average Corruption . | . . . Corruption Purged . | . . . Corruption Blocked . | . . . Overload Shots . | . . . Overflow Damage . | . . . Projectiles . | . . . Explosions . | . . . Melee . | . . . Knockbacks . | . . . Impact . | . . . Kinetic . | . . . Secondary . | . . . Self-Inflicted Damage . | . . . Shots . | . . . Rammed . | . . . Targets Rammed . | . . . Kicked . | . . . Crushed . | . . . Highest Temperature 297 | . 297 121 Average Temperature 70 | . 72 57 Received Heat Transfer 660 | . 393 267 Siege Activations . | . . . Robots Corrupted . | . . . Combat Hostiles . | . . . Parts Fried . | . . . Impact Corruptions . | . . . Robots Melted . | . . . Combat Hostiles . | . . . Parts Melted 1 | . 1 . Heat Transferred 1221 | . 1147 74 Parts Sabotaged . | . . . Parts Stolen . | . . . Parts Stripped . | . . . Power Chain Reactions . | . . . Alert | -11 -10 -10 ------- Run | Yrd Mat Min Peak Influence 243 | 10 243 26 Initial 11 | . 6 11 Average 57 | 3 70 11 Maximum Alert Level 1 | . 1 . Low Security (%) 92 | 100 90 100 Level 1 7 | . 9 . Level 2 . | . . . Level 3 . | . . . Level 4 . | . . . Level 5 . | . . . High Security . | . . . Max Security . | . . . Squads Dispatched 2 | . 2 . Investigation 1 | . 1 . Extermination . | . . . Reinforcement 1 | . 1 . Assault . | . . . Garrison . | . . . Intercept . | . . . Searches Triggered . | . . . Construction Impeded . | . . . Haulers Reinforced . | . . . Active Scanning Responses . | . . . Cargo Convoy Interrupts . | . . . Stealth | -11 -10 -10 --------- Run | Yrd Mat Min Distress Signals 1 | . 1 . Communications Jammed . | . . . Distress Signals . | . . . Times Spotted 27 | . 20 7 Peak Tracking Total 6 | . 6 6 Tactical Retreats 4 | . 3 1 Traps | -11 -10 -10 ------- Run | Yrd Mat Min Traps Triggered 1 | . 1 . Indirectly . | . . . Trap Hack Attempts . | . . . Triggered . | . . . Disarmed . | . . . Reprogrammed . | . . . Reused . | . . . Traps Extracted . | . . . Installed . | . . . Triggered . | . . . Machines | -11 -10 -10 ---------- Run | Yrd Mat Min Machines Disabled 1 | . 1 . Max in Single Turn 1 | . 1 . Machines Repaired . | . . . Machines Dismantled . | . . . Machines Sabotaged . | . . . Overloaded Fab Kills . | . . . Hacking | -11 -10 -10 --------- Run | Yrd Mat Min Machines Accessed 9 | . 9 . Terminals 7 | . 7 . Fabricators . | . . . Repair Stations 1 | . 1 . Recycling Units 1 | . 1 . Scanalyzers . | . . . Garrison Access . | . . . Total Hacks 39 | . 39 . Successful 21 | . 21 . Failed 18 | . 18 . Catastrophic 1 | . 1 . Database Lockouts . | . . . Manual 31 | . 31 . Terminals 31 | . 31 . Fabricators . | . . . Repair Stations 4 | . 4 . Recycling Units 4 | . 4 . Scanalyzers . | . . . Garrison Access . | . . . Terminal Hacks 8 | . 8 . Part Schematic 2 | . 2 . Robot Analysis 5 | . 5 . Branch Access Points 1 | . 1 . Fabricator Hacks . | . . . Repair Station Hacks 4 | . 4 . Scan Component 2 | . 2 . Repair 2 | . 2 . Recycling Unit Hacks 2 | . 2 . Report Inventory 1 | . 1 . Retrieve Components 1 | . 1 . Scanalyzer . | . . . Garrison Access Hacks . | . . . Unauthorized Hacks 7 | . 7 . Terminals 7 | . 7 . Botnet 7 | . 7 . Fabricators . | . . . Repair Stations . | . . . Recycling Units . | . . . Scanalyzers . | . . . Garrison Access . | . . . Data Cores Recovered . | . . . Used . | . . . Hacking Detections 8 | . 8 . Full Trace Events 2 | . 2 . Feedback Events . | . . . Feedback Blocked . | . . . Robot Schematics Acquired . | . . . Robots Built . | . . . Authchips . | . . . Time . | . . . Total Robot Build Rating . | . . . Part Schematics Acquired 2 | . 2 . Parts Built . | . . . Authchips . | . . . Time . | . . . Total Part Build Rating . | . . . Parts Repaired 2 | . 2 . Time 58 | . 58 . Parts Recycled . | . . . Recycled Matter . | . . . Retrieved Matter . | . . . Retrieved Components 10 | . 10 . Parts Scanalyzed . | . . . Part Schematics Acquired . | . . . Parts Damaged . | . . . Bothacking | -11 -10 -10 ------------ Run | Yrd Mat Min Used RIF Installer . | . . . Robots Hacked . | . . . Non-combat . | . . . Combat . | . . . Robot Hacks Applied . | . . . Relay Couplers Released . | . . . Fabnet Peak Effective % . | . . . Robots Rewired . | . . . Allies Hacked . | . . . Hacks Repelled . | . . . Allies | -11 -10 -10 -------- Run | Yrd Mat Min Total Allies . | . . . Largest Group . | . . . Highest-Rated Group . | . . . Highest-Rated Ally . | . . . Total Orders . | . . . Ally Attacks . | . . . Total Damage . | . . . Kills . | . . . Allies Corrupted . | . . . Allies Melted . | . . . Intel | -11 -10 -10 ------- Run | Yrd Mat Min Robot Analysis Total 5 | . 5 . Derelict Logs Recovered 2 | . . 2 Drone Launches . | . . . Drone Recoveries . | . . . Exploration | -11 -10 -10 ------------- Run | Yrd Mat Min Turns Passed 1799 | 87 1396 316 Spaces Moved 1320 | 56 957 307 Core 6 | 6 . . Treads . | . . . Legs 206 | 50 156 . Wheels 1108 | . 801 307 Hover . | . . . Flight . | . . . Fastest Speed 50 | 50 95 95 Average Speed 107 | 112 111 95 Slowest Speed 260 | 120 260 95 Overloaded Moves . | . . . Propulsion Burnouts . | . . . Robots Hopped . | . . . Cave-ins Triggered . | . . . Exploration Rate (%) 51 | 4 97 54 Regions Visited 2 Branch Regions 1 Pre-discovered Areas 1 | . . 1 Known Exits Taken 1 | . 1 . Unknown Exits Taken 1 | 1 . . Scrap Searched 2 | . . 2 Spaces Dug . | . . . Terrain Destroyed . | . . . Melee . | . . . Projectile . | . . . AOE . | . . . Terrain Rammed . | . . . Walls Destroyed . | . . . Machines Disabled . | . . . Actions | -11 -10 -10 --------- Run | Yrd Mat Min Total 1569 | 69 1178 322 Wait 107 | . 103 4 Move 1318 | 55 956 307 Hop . | . . . Pick Up 26 | 3 21 2 Fast Attach 14 | 6 8 . Attach 7 | . 5 2 Detach 1 | . 1 . Swap 9 | . 8 1 Drop 14 | . 13 1 Fire 73 | 5 63 5 Melee . | . . . Ram . | . . . Kick . | . . . Crush . | . . . Escape Stasis . | . . . Rewire . | . . . Trap . | . . . Miscellaneous . | . . . Route ------- -11/Scrapyard -10/Materials (discovered 6 exits: [*Mat x3] / *Min x2 / [Sub]) -10/Mines History --------- Turn | Location | Event 10 | -11/Scrapyard | Discovered new exit (range 15) 88 | -11/Scrapyard | Entered Materials 130 | -10/Materials | Discovered new exit (range 16) 143 | -10/Materials | Discovered new exit (range 10) 309 | -10/Materials | Build established: Mutant 644 | -10/Materials | Build established: Scavenger-Mutant 683 | -10/Materials | Identified exit to Mines 821 | -10/Materials | Discovered new exit (range 10) 945 | -10/Materials | Discovered new exit (range 16) 1299 | -10/Materials | Repaired Wheel 1332 | -10/Materials | Repaired Particle Gun 1469 | -10/Materials | Discovered new exit (range 12) 1484 | -10/Materials | Entered Mines 1729 | -10/Mines | Learned Materials emergency access door positions 1743 | -10/Mines | Learned location of Mines (-8) 1754 | -10/Mines | Core integrity fell below 50% 1781 | -10/Mines | Core integrity fell below 20% 1800 | -10/Mines | Destroyed by G-47 Trooper with Particle Gun Last Messages --------------- LOCATION=MINES GOAL=ESCAPE 01517_ Searching scrap... 01517_ Found Lgt. Armor Plating. 01517_ Found 16 Matter. 01518_ Acquired 10 matter. 01521_ Acquired Lgt. Armor Plating. 01638_ Dropped EM Pulse Gun. 01639_ Acquired Med. Laser. 01687_ Searching scrap... 01687_ Found Hcp. Matter Pod. 01687_ Found 16 Matter. 01729_ Acquired derelict log, extracted data. Data stored: Materials emergency access points. 01743_ Acquired derelict log, extracted data. World map updated: -8/Mines. 01761_ Critical hit (Burn: +37). 01771_ Wheel destroyed. 01782_ Sensor Array destroyed. 01785_ K-01 Serf collects debris. Map ----- +----------------------------------------------------+ | ##??????????## #??????????????????????? | | ##?????????# ##### #??????????????????????? | | #?????????# ##???# #??????????????????????? | | ##????????# ##???# #??????????????????????? | | ###?????## #???# #??????????????????????? | | ##???## #???# #??????????????????????? | | ##### ##??# #??????????????????????? | | ## #??# #??????????????????????? | | ##?# #??????????????????????? | | ### ##?????????????????????? | | #?????????????????????? | | #?????????????????????? | | ## #### #### #?????????????????????? | | ##### ##??####??# #?????????????????????? | | ????# ###???????# #?????????????????????? | | ????## #???????# #?????????????????????? | | ##???## ## #???????# #?????????????????????? | | ####?###### #???????# #?????????????????????? | | ##?????# #???????# #?????????????????????? | | #?????# #???????# #?????????????????????? | | #?????# #??????## ##????????????????????? | | ##?????# #?????## #????????????????????? | | ########g####### #????????????????????? | | ! g g #????????????????????? | | % g g r #### #???????????????? | | ######## ######### @ #???????????????? | | ##????? #???????## #######???????????????? | | ##????? ????????###?????????????????????? | | ##????? ???????????????????????????????? | | ##?????# #??????????????????????????????? | | #??????## ##??????????????????????????????? | | ????????## #???????????????????????????????? | | ?????????## ???????????????????????????????? | | ??????????# ???????????????????????????????? | | ?????????? ???????????????????????????????? | | ?????????? ???????????????????????????????? | | ?????????? ???????????????????????????????? | | ?????????? #??????????????????????????????? | | ?????????? ##??????????????????????????????? | | ?????????? #????????????????????????????????? | | ??????????????????????????????????????????????? | | ??????????????????????????????????????????????? | | ??????????????????????????????????????????????? | | ??????????????????????????????????????????????? | | ??????????????????????????????????????????????? | | ??????????????????????????????????????????????? | | ??????????????????????????????????????????????? | | ??????????????????????????????????????????????? | | ??????????????????????????????????????????????? | | ??????????????????????????????????????????????? | +----------------------------------------------------+ Best States ------------- Heat Dissipation 25 Energy Generation 10 Energy Capacity 250 Matter Stores 400 Matter Capacity 400 Sight Range 18 Robot Scan Range 14 Terrain Scan Density 10 Armor Coverage 150 Evasion (%) 55 Item Schematics ----------------- Lrg. Storage Unit | -10/Materials | Hacked Hcp. Matter Pod | -10/Materials | Hacked Robot Schematics ------------------ None Fabricated ------------ Nothing Alien Tech Used ----------------- None Achievements -------------- None Challenges ------------ None Game ------ Seed WarpCombatBarrier Manual? 0 Play Time 00:19:31 Cumulative 65.1 hours Start 2024.07.10 @ 10:16:11 End 2024.07.10 @ 10:35:46 Sessions 1 Manual Loads 0 Difficulty Rogue Special Mode None Game No. 48 Rogue 47 Adventurer 1 Explorer 0 Win Type - Total 0 Types 0/0/0/0/0/0/0/0/0 Lore% 28 Gallery% 33 Achievement% 30 Wizard Run 0 Options --------- Layout 1 ASCII 0 Keyboard 0 Movement Mouse Keybinds 0 Fullscreen 1 Font 24/Proggy Map View 76x35 Zoom Use 0% Tactical HUD 1 Map Filters NONE Filters NONE Steam 1 RUN: 12ab30cf-8561-4d20-b686-5b0b369b3c42